fUST/lending_fUST_20241203
["ID","MTS","AMOUNT","RATE_DAILY","PERIOD"]
[344015140,1733207444549,-500.0,0.00022058,2]
[344015141,1733207444559,-629.45258297,0.00022058,2]
[344015142,1733207444570,-449.35898277,0.00022058,2]
[344015143,1733207444580,-500.0,0.00022058,2]
[344015144,1733207444593,-629.45258297,0.00022058,2]
[344015145,1733207444604,-500.0,0.00022058,2]
[344015146,1733207444614,-500.0,0.00022058,2]
[344015147,1733207444624,-500.0,0.00022058,2]
[344015148,1733207444635,-500.0,0.00022058,2]
[344015149,1733207444644,-446.2413682,0.00022058,2]
[344015150,1733207444654,-629.45258297,0.00022058,2]
[344015151,1733207444664,-500.0,0.00022058,2]
[344015152,1733207444674,-629.45258297,0.00022058,2]
[344015153,1733207444684,-500.0,0.00022058,2]
[344015154,1733207444693,-500.0,0.00022058,2]
[344015155,1733207444703,-629.45258297,0.00022058,2]
[344015156,1733207444713,-500.0,0.00022058,2]
[344015157,1733207444722,-500.0,0.00022058,2]
[344015158,1733207444733,-500.0,0.00022058,2]
[344015159,1733207444742,-500.0,0.00022058,2]
[344015160,1733207444753,-500.0,0.00022058,2]
[344015161,1733207444763,-500.0,0.00022058,2]
[344015162,1733207444772,-629.45258297,0.00022058,2]
[344015163,1733207444782,-629.45258297,0.00022058,2]
[344015164,1733207444791,-500.0,0.00022058,2]
[344015165,1733207444801,-500.0,0.00022058,2]
[344015166,1733207444811,-629.45258297,0.00022058,2]
[344015167,1733207444821,-500.0,0.00022058,2]
[344015168,1733207444831,-500.0,0.00022058,2]
[344015169,1733207444840,-629.45258297,0.00022058,2]
[344015170,1733207444849,-500.0,0.00022058,2]
[344015171,1733207444859,-500.0,0.00022058,2]
[344015172,1733207444869,-629.45258297,0.00022058,2]
[344015173,1733207444879,-500.0,0.00022058,2]
[344015174,1733207444889,-500.0,0.00022058,2]
[344015175,1733207444899,-629.45258297,0.00022058,2]
[344015176,1733207444908,-629.45258297,0.00022058,2]
[344015177,1733207444917,-500.0,0.00022058,2]
[344015178,1733207444927,-500.0,0.00022058,2]
[344015179,1733207444937,-629.45258297,0.00022058,2]
[344015180,1733207444947,-1100.0565932,0.00022059,2]
[344015181,1733207444957,-151.0,0.0002206,7]
[344015182,1733207444967,-151.0,0.0002206,7]
[344015183,1733207444978,-151.0,0.0002206,7]
[344015184,1733207444987,-151.0,0.0002206,7]
[344015185,1733207444997,-165.000298,0.00022061,7]
[344015186,1733207445007,-155.052889,0.00022061,7]
[344015187,1733207445017,-500.0,0.00022061,2]
[344015188,1733207445027,-357.58629071,0.00022061,2]
[344015189,1733207445036,-369.47764365,0.00022061,2]
[344015190,1733207445046,-321.9036581,0.00022061,2]
[344015191,1733207445058,-500.0,0.00022061,2]
[344015192,1733207445068,-366.72317214,0.00022061,2]
[344015193,1733207445078,-151.0,0.00022062,7]
[344015194,1733207445161,-151.0,0.00022062,7]
[344015195,1733207445171,-151.0,0.00022062,7]
[344015196,1733207445181,-173.282549,0.00022062,7]
[344015197,1733207445192,-276.987175,0.00022062,7]
[344015198,1733207445201,-5301.75,0.00022062,2]
[344015199,1733207445211,-5301.75,0.00022062,2]
[344015200,1733207445221,-5301.75,0.00022062,2]
[344015201,1733207445231,-5301.75,0.00022062,2]
[344015202,1733207445241,-5301.75,0.00022062,2]
[344015203,1733207445250,-5301.75,0.00022062,2]
[344015204,1733207445260,-5301.75,0.00022062,2]
[344015205,1733207445269,-5301.75,0.00022062,2]
[344015206,1733207445280,-5301.75,0.00022062,2]
[344015207,1733207445289,-151.0,0.00022062,7]
[344015208,1733207445300,-151.0,0.00022062,7]
[344015209,1733207445310,-151.0,0.00022062,7]
[344015210,1733207445319,-256.474156,0.00022062,7]
[344015211,1733207445330,-151.0,0.00022063,7]
[344015212,1733207445341,-154.578384,0.00022063,7]
[344015213,1733207445351,-151.0,0.00022063,7]
[344015214,1733207445360,-151.0,0.00022063,7]
[344015215,1733207445370,-151.0,0.00022063,7]
[344015216,1733207445379,-151.0,0.00022063,7]
[344015217,1733207445388,-151.0,0.00022063,7]
[344015218,1733207445398,-208.229092,0.00022063,7]
[344015219,1733207445408,-151.0,0.00022063,7]
[344015220,1733207445418,-151.0,0.00022063,7]
[344015221,1733207445428,-151.0,0.00022063,7]
[344015222,1733207445441,-151.0,0.00022063,7]
[344015223,1733207445451,-186.761242,0.00022063,7]
[344015224,1733207445461,-151.0,0.00022063,7]
[344015226,1733207445471,-199.213771,0.00022063,7]
[344015227,1733207445481,-151.0,0.00022063,7]
[344015228,1733207445491,-151.0,0.00022064,7]
[344015229,1733207445501,-153.860128,0.00022064,7]
[344015230,1733207445513,-5301.75,0.00022065,2]
[344015231,1733207445527,-5301.75,0.00022065,2]
[344015232,1733207445537,-48128.48038183,0.00022065,2]
[344015233,1733207445626,-835.51295905,0.00022065,2]
[344015238,1733207446191,-284.20412829,0.00019993,2]
[344015239,1733207446201,-152.0,0.00021872,2]
[344015240,1733207446210,-559.73847612,0.00022065,2]
[344015241,1733207446231,-14818.90763735,0.00022065,2]
[344015242,1733207446271,-1109.7614387,0.00022065,2]
[344015243,1733207470265,210.96093473,0.00018404,2]
[344019755,1733208553130,-5000.0,0.00017576,2]
[344019756,1733208553160,-3311.25851925,0.00017731,2]
[344019757,1733208553192,-300.0,0.00017754,2]
[344019758,1733208553223,-300.0,0.00017754,2]
[344019759,1733208553249,-972.32731168,0.00017755,2]
[344019852,1733208640226,-359.43828839,0.00017578,2]
[344019868,1733208646389,-498.8499986,0.00017578,2]
[344019873,1733208669327,440.90604448,0.00015,2]
[344019875,1733208669359,30635.14444452,0.00015,2]
[344019876,1733208721884,184.920948,0.00013973,2]
[344019878,1733208763211,4500.0,0.00025999,60]
[344019879,1733208942231,1628.56297948,0.000161,2]
[344019880,1733209005922,-151.0,0.00022058,7]
[344019881,1733209005943,-166.190436,0.00022058,7]
[344019882,1733209005966,-166.190436,0.00022058,7]
[344019883,1733209005988,-151.0,0.00022061,7]
[344019884,1733209006094,-166.190436,0.00022061,7]
[344019885,1733209006118,-166.190436,0.00022061,7]
[344019886,1733209006142,-219.390016,0.00022061,7]
[344019887,1733209006165,-219.390016,0.00022061,7]
[344019888,1733209006188,-111.077352,0.00022061,7]
[344019890,1733209127879,483.380872,0.00022058,7]
[344019896,1733209341263,175.6749,0.00013973,2]
[344019900,1733209492508,1913.8538038,0.00015936,2]
[344019902,1733209501496,4827.03340136,0.00016001,2]
[344019904,1733209603107,-172.96659864,0.00016001,2]
[344019905,1733209603128,-300.0,0.00016388,2]
[344019906,1733209603149,-300.0,0.00016388,2]
[344019907,1733209603172,-4102.30828525,0.00016623,2]
[344019989,1733209832851,-1132.67001,0.00016291,2]
[344019990,1733209833069,-506.65003,0.00016291,2]
[344019991,1733209833090,-3360.67996,0.00016291,2]
[344019992,1733209833101,-1089.76657061,0.00016522,2]
[344019993,1733209833199,-1089.76657061,0.00016579,2]
[344019994,1733209833210,-300.0,0.00016622,2]
[344019995,1733209833221,-300.0,0.00016622,2]
[344019996,1733209833239,-20797.69171475,0.00016623,2]
[344019997,1733209833252,-1089.76657061,0.00016635,2]
[344019998,1733209833263,-429.642079,0.00016735,2]
[344019999,1733209833275,-2897.3512043,0.00017037,2]
[344020000,1733209833284,-250.0,0.00017137,2]
[344020001,1733209833295,-969.7139602,0.00017204,2]
[344020002,1733209833305,-3845.9239885,0.00017204,2]
[344020003,1733209833315,-315.7830074,0.00017217,2]
[344020004,1733209833326,-807.07779765,0.00017408,2]
[344020005,1733209833337,-10528.25337506,0.00017408,2]
[344020006,1733209833348,-150.54940005,0.00017532,2]
[344020007,1733209833358,-420.0,0.00018161,2]
[344020008,1733209833368,-347.7944967,0.00018226,2]
[344020009,1733209833379,-420.0,0.00018284,2]
[344020010,1733209833389,-2897.35120429,0.00018956,2]
[344020011,1733209833400,-5000.0,0.00019178,2]
[344020012,1733209833410,-5000.0,0.00019178,2]
[344020013,1733209833421,-194.262279,0.00019178,2]
[344020014,1733209833430,-500.140485,0.00019375,2]
[344020015,1733209833440,-5000.0,0.0001952,2]
[344020016,1733209833450,-587.0,0.00019844,2]
[344020017,1733209833460,-5000.0,0.00019918,2]
[344020018,1733209833470,-1169.27083333,0.0002,2]
[344020019,1733209833483,-150.0,0.0002,2]
[344020020,1733209833493,-587.0,0.00020112,2]
[344020021,1733209833504,-193.09,0.00020171,3]
[344020022,1733209833514,-579.27,0.00020171,3]
[344020023,1733209833525,-500.0,0.00020173,2]
[344020024,1733209833536,-500.0,0.00020173,2]
[344020025,1733209833546,-500.0,0.00020173,2]
[344020026,1733209833557,-502.5813538,0.00020173,2]
[344020027,1733209833566,-608.05343081,0.00020173,2]
[344020028,1733209833577,-163.56945188,0.00020173,2]
[344020029,1733209833588,-502.28386751,0.00020173,2]
[344020030,1733209833598,-160.56839973,0.00020173,2]
[344020031,1733209833609,-160.06819303,0.00020173,2]
[344020032,1733209833619,-261.76153932,0.00020173,2]
[344020033,1733209833628,-500.0,0.00020173,2]
[344020034,1733209833638,-500.0,0.00020173,2]
[344020035,1733209833648,-620.18968819,0.00020173,2]
[344020036,1733209833659,-367.12072032,0.00020173,2]
[344020037,1733209833670,-500.0,0.00020173,2]
[344020038,1733209833680,-500.0,0.00020173,2]
[344020039,1733209833690,-153.87539489,0.00020173,2]
[344020040,1733209833700,-500.0,0.00020173,2]
[344020041,1733209833710,-500.0,0.00020181,2]
[344020042,1733209833721,-500.0,0.00020181,2]
[344020043,1733209833737,-500.0,0.00020181,2]
[344020044,1733209833747,-500.0,0.00020181,2]
[344020045,1733209833757,-500.0,0.00020181,2]
[344020046,1733209833767,-500.0,0.00020181,2]
[344020047,1733209833778,-500.0,0.00020181,2]
[344020048,1733209833788,-500.0,0.00020181,2]
[344020049,1733209833799,-500.0,0.00020181,2]
[344020050,1733209833811,-500.0,0.00020181,2]
[344020051,1733209833821,-500.0,0.00020181,2]
[344020052,1733209833831,-384.42415867,0.00020181,2]
[344020053,1733209833841,-500.0,0.00020181,2]
[344020054,1733209833851,-500.0,0.00020181,2]
[344020055,1733209833861,-500.0,0.00020181,2]
[344020056,1733209833871,-500.0,0.00020181,2]
[344020057,1733209833882,-500.0,0.00020181,2]
[344020058,1733209833891,-500.0,0.00020181,2]
[344020059,1733209833901,-500.0,0.00020181,2]
[344020060,1733209833911,-500.0,0.00020181,2]
[344020061,1733209833921,-500.0,0.00020181,2]
[344020062,1733209833932,-500.0,0.00020181,2]
[344020063,1733209833942,-500.0,0.00020181,2]
[344020064,1733209833953,-500.0,0.00020181,2]
[344020065,1733209833963,-500.0,0.00020181,2]
[344020066,1733209833973,-500.0,0.00020181,2]
[344020067,1733209833989,-500.0,0.00020181,2]
[344020068,1733209833999,-500.0,0.00020181,2]
[344020069,1733209834009,-500.0,0.00020181,2]
[344020070,1733209834020,-500.0,0.00020181,2]
[344020071,1733209834030,-546.57051535,0.00020181,2]
[344020072,1733209834040,-500.0,0.00020181,2]
[344020073,1733209834051,-500.0,0.00020181,2]
[344020074,1733209834061,-500.0,0.00020181,2]
[344020075,1733209834071,-500.0,0.00020181,2]
[344020076,1733209834082,-500.0,0.00020181,2]
[344020077,1733209834092,-500.0,0.00020181,2]
[344020078,1733209834103,-500.0,0.00020181,2]
[344020079,1733209834114,-500.0,0.00020181,2]
[344020080,1733209834124,-500.0,0.00020181,2]
[344020081,1733209834134,-500.0,0.00020181,2]
[344020082,1733209834145,-500.0,0.00020181,2]
[344020083,1733209834157,-500.0,0.00020181,2]
[344020084,1733209834167,-500.0,0.00020181,2]
[344020085,1733209834177,-500.0,0.00020181,2]
[344020086,1733209834187,-500.0,0.00020181,2]
[344020087,1733209834198,-500.0,0.00020181,2]
[344020088,1733209834208,-500.0,0.00020181,2]
[344020089,1733209834219,-500.0,0.00020181,2]
[344020090,1733209834233,-500.0,0.00020181,2]
[344020091,1733209834247,-500.0,0.00020181,2]
[344020092,1733209834258,-500.0,0.00020181,2]
[344020093,1733209834269,-604.65705153,0.00020181,2]
[344020094,1733209834281,-500.0,0.00020181,2]
[344020095,1733209834291,-500.0,0.00020181,2]
[344020096,1733209834301,-500.0,0.00020181,2]
[344020097,1733209834312,-500.0,0.00020181,2]
[344020098,1733209834322,-500.0,0.00020181,2]
[344020099,1733209834332,-500.0,0.00020181,2]
[344020100,1733209834343,-500.0,0.00020181,2]
[344020101,1733209834353,-500.0,0.00020181,2]
[344020102,1733209834363,-500.0,0.00020181,2]
[344020103,1733209834373,-500.0,0.00020181,2]
[344020104,1733209834383,-500.0,0.00020181,2]
[344020105,1733209834394,-500.0,0.00020181,2]
[344020106,1733209834404,-500.0,0.00020181,2]
[344020107,1733209834414,-500.0,0.00020181,2]
[344020108,1733209834424,-500.0,0.00020181,2]
[344020109,1733209834435,-500.0,0.00020181,2]
[344020110,1733209834445,-500.0,0.00020181,2]
[344020111,1733209834455,-500.0,0.00020181,2]
[344020112,1733209834465,-500.0,0.00020181,2]
[344020113,1733209834480,-500.0,0.00020181,2]
[344020114,1733209834489,-500.0,0.00020181,2]
[344020115,1733209834499,-500.0,0.00020181,2]
[344020116,1733209834509,-500.0,0.00020181,2]
[344020117,1733209834519,-500.0,0.00020181,2]
[344020118,1733209834529,-300.0,0.00020181,2]
[344020119,1733209834540,-500.0,0.00020181,2]
[344020120,1733209834551,-151.327643,0.00020182,2]
[344020121,1733209834561,-151.0,0.00020182,2]
[344020122,1733209834572,-151.0,0.00020183,2]
[344020123,1733209834582,-222.659587,0.00020183,2]
[344020124,1733209834592,-222.659587,0.00020183,2]
[344020125,1733209834603,-152.492511,0.00020183,2]
[344020126,1733209834613,-5000.0,0.00020184,2]
[344020127,1733209834624,-151.0,0.00020185,2]
[344020128,1733209834634,-151.0,0.00020185,2]
[344020129,1733209834644,-428.04339122,0.00020357,2]
[344020130,1733209834655,-402.83796164,0.00020357,2]
[344020131,1733209834665,-500.0,0.00020357,2]
[344020132,1733209834675,-500.0,0.00020357,2]
[344020133,1733209834685,-540.34321034,0.00020357,2]
[344020134,1733209834696,-5000.0,0.00020358,2]
[344020135,1733209834706,-5000.0,0.00020358,2]
[344020136,1733209834717,-5000.0,0.00020358,2]
[344020137,1733209834733,-5000.0,0.00020358,2]
[344020138,1733209834744,-5000.0,0.00020358,2]
[344020139,1733209834755,-501.60916874,0.00020359,2]
[344020140,1733209834767,-209.261442,0.0002036,2]
[344020141,1733209834776,-209.261442,0.0002036,2]
[344020142,1733209834787,-209.261442,0.0002036,2]
[344020143,1733209834798,-209.261442,0.0002036,2]
[344020144,1733209834808,-163.994481,0.0002036,2]
[344020145,1733209834819,-151.0,0.0002036,2]
[344020146,1733209834830,-151.0,0.0002036,2]
[344020147,1733209834908,-197.451015,0.00020361,2]
[344020148,1733209834919,-197.451015,0.00020361,2]
[344020149,1733209834929,-775.61802,0.00020361,2]
[344020150,1733209834940,-775.61802,0.00020361,2]
[344020151,1733209834951,-154.141837,0.00020362,2]
[344020152,1733209834961,-263.712444,0.00020362,2]
[344020153,1733209834973,-263.712444,0.00020362,2]
[344020154,1733209834988,-263.712444,0.00020363,2]
[344020155,1733209834999,-263.712444,0.00020363,2]
[344020156,1733209835010,-3017.67924445,0.00020372,2]
[344020157,1733209835020,-202.50883671,0.00020373,2]
[344020158,1733209835029,-501.4592326,0.00020373,2]
[344020159,1733209835039,-154.75476294,0.00020373,2]
[344020160,1733209835050,-546.37887701,0.00020373,2]
[344020161,1733209835060,-500.0,0.00020373,2]
[344020162,1733209835070,-500.0,0.00020373,2]
[344020163,1733209835080,-153.0,0.00020411,2]
[344020164,1733209835090,-153.0,0.00020411,2]
[344020165,1733209835100,-153.0,0.00020411,2]
[344020166,1733209835112,-153.0,0.00020411,2]
[344020167,1733209835121,-153.0,0.00020411,2]
[344020168,1733209835131,-205.3445275,0.00020411,2]
[344020169,1733209835140,-444.967813,0.00020429,2]
[344020170,1733209835150,-444.967813,0.00020429,2]
[344020171,1733209835159,-641.792493,0.00020429,2]
[344020172,1733209835169,-641.792493,0.00020429,2]
[344020173,1733209835178,-175.6749,0.00020447,2]
[344020174,1733209835188,-183.098343,0.00020521,2]
[344020175,1733209835198,-197.451015,0.00020549,2]
[344020176,1733209835208,-197.451015,0.00020549,2]
[344020177,1733209835218,-775.61802,0.00020549,2]
[344020178,1733209835230,-775.61802,0.00020549,2]
[344020179,1733209835251,-151.0,0.00020559,2]
[344020180,1733209835260,-151.0,0.00020559,2]
[344020181,1733209835270,-151.0,0.0002056,2]
[344020182,1733209835282,-197.702058,0.0002056,2]
[344020183,1733209835292,-197.702058,0.0002056,2]
[344020184,1733209835303,-209.261442,0.00020561,2]
[344020185,1733209835312,-209.261442,0.00020561,2]
[344020186,1733209835324,-222.992947,0.00020561,2]
[344020187,1733209835334,-222.659587,0.00020561,2]
[344020188,1733209835344,-222.659587,0.00020561,2]
[344020189,1733209835354,-151.0,0.00020562,2]
[344020190,1733209835364,-151.0,0.00020562,2]
[344020191,1733209835375,-151.0,0.00020562,2]
[344020192,1733209835385,-151.0,0.00020562,2]
[344020193,1733209835395,-1566.46438582,0.00020589,2]
[344020194,1733209835404,-263.712444,0.00020589,2]
[344020195,1733209835414,-263.712444,0.00020589,2]
[344020196,1733209835425,-444.967813,0.00020589,2]
[344020197,1733209835434,-444.967813,0.00020589,2]
[344020198,1733209835444,-264.518844,0.00020589,2]
[344020199,1733209835454,-641.792493,0.00020589,2]
[344020200,1733209835463,-641.792493,0.00020589,2]
[344020201,1733209835474,-151.0,0.0002059,2]
[344020202,1733209835488,-151.0,0.0002059,2]
[344020203,1733209835499,-197.451015,0.0002059,2]
[344020204,1733209835510,-197.451015,0.0002059,2]
[344020205,1733209835520,-775.61802,0.0002059,2]
[344020206,1733209835534,-775.61802,0.0002059,2]
[344020207,1733209835544,-151.0,0.00020603,2]
[344020208,1733209835554,-151.0,0.00020603,2]
[344020209,1733209835564,-151.0,0.00020603,2]
[344020210,1733209835574,-161.478585,0.00020603,2]
[344020211,1733209835584,-151.0,0.00020603,2]
[344020212,1733209835594,-151.0,0.00020603,2]
[344020213,1733209835604,-151.0,0.00020603,2]
[344020214,1733209835615,-151.0,0.00020672,2]
[344020215,1733209835625,-197.702058,0.00020672,2]
[344020216,1733209835637,-197.702058,0.00020672,2]
[344020217,1733209835648,-151.0,0.00020673,2]
[344020218,1733209835659,-209.261442,0.00020713,2]
[344020219,1733209835669,-209.261442,0.00020713,2]
[344020220,1733209835679,-768.00462889,0.00020721,2]
[344020221,1733209835689,-298.2481422,0.00020721,2]
[344020222,1733209835699,-611.9217465,0.00020721,2]
[344020223,1733209835709,-282.96156645,0.00020721,2]
[344020224,1733209835719,-1000.0,0.00020721,2]
[344020225,1733209835732,-151.0,0.00020809,2]
[344020226,1733209835742,-151.0,0.0002081,2]
[344020227,1733209835752,-151.0,0.00020812,2]
[344020228,1733209835762,-151.0,0.00020812,2]
[344020229,1733209835771,-151.0,0.00020812,2]
[344020230,1733209835781,-151.0,0.00020812,2]
[344020231,1733209835791,-151.0,0.00020812,2]
[344020232,1733209835801,-151.0,0.00020812,2]
[344020233,1733209835811,-151.0,0.00020873,2]
[344020234,1733209835822,-166.190436,0.00020873,2]
[344020235,1733209835833,-166.190436,0.00020873,2]
[344020236,1733209835843,-151.0,0.00020873,2]
[344020237,1733209835854,-151.0,0.00020873,2]
[344020238,1733209835864,-197.702058,0.00020873,2]
[344020239,1733209835874,-197.702058,0.00020873,2]
[344020240,1733209835884,-263.712444,0.00020873,2]
[344020241,1733209835894,-263.712444,0.00020873,2]
[344020242,1733209835904,-2897.35120429,0.00020876,2]
[344020243,1733209835914,-444.967813,0.00020889,2]
[344020244,1733209835924,-444.967813,0.00020889,2]
[344020245,1733209835933,-641.792493,0.00020889,2]
[344020246,1733209835943,-641.792493,0.00020889,2]
[344020247,1733209835953,-500.0,0.00020908,2]
[344020248,1733209835962,-1000.0,0.00020921,2]
[344020249,1733209835972,-222.659587,0.00020933,2]
[344020250,1733209835985,-222.659587,0.00020933,2]
[344020251,1733209835995,-154.283449,0.00021158,2]
[344020252,1733209836006,-151.0,0.00021158,2]
[344020253,1733209836020,-151.0,0.00021158,2]
[344020254,1733209836031,-197.451015,0.00021158,2]
[344020255,1733209836040,-197.451015,0.00021158,2]
[344020256,1733209836050,-775.61802,0.00021158,2]
[344020257,1733209836060,-775.61802,0.00021158,2]
[344020258,1733209836070,-521.27496321,0.00021189,2]
[344020259,1733209836080,-500.0,0.00021189,2]
[344020260,1733209836091,-151.0,0.00021189,2]
[344020261,1733209836101,-151.0,0.00021189,2]
[344020262,1733209836110,-151.0,0.00021233,2]
[344020263,1733209836121,-209.261442,0.00021264,2]
[344020264,1733209836131,-209.261442,0.00021264,2]
[344020265,1733209836141,-157.513495,0.00021421,2]
[344020266,1733209836151,-151.0,0.00021421,2]
[344020267,1733209836161,-151.0,0.00021421,2]
[344020268,1733209836172,-263.712444,0.00021425,2]
[344020269,1733209836182,-263.712444,0.00021425,2]
[344020270,1733209836192,-151.0,0.00021443,2]
[344020271,1733209836202,-197.702058,0.00021443,2]
[344020272,1733209836211,-197.702058,0.00021443,2]
[344020273,1733209836221,-1003.93387886,0.00021456,2]
[344020274,1733209836234,-444.967813,0.00021511,2]
[344020275,1733209836249,-444.967813,0.00021511,2]
[344020276,1733209836259,-641.792493,0.00021511,2]
[344020277,1733209836269,-641.792493,0.00021511,2]
[344020278,1733209836280,-386.18,0.00021541,3]
[344020279,1733209836290,-151.0,0.00021592,2]
[344020280,1733209836300,-151.0,0.00021631,2]
[344020281,1733209836311,-166.190436,0.00021631,2]
[344020282,1733209836322,-166.190436,0.00021631,2]
[344020283,1733209836332,-823.0,0.00021682,2]
[344020284,1733209836342,-1500.0,0.00021722,2]
[344020285,1733209836352,-646.97460245,0.00021737,2]
[344020286,1733209836362,-197.451015,0.00021766,2]
[344020287,1733209836372,-197.451015,0.00021766,2]
[344020288,1733209836382,-775.61802,0.00021766,2]
[344020289,1733209836461,-775.61802,0.00021766,2]
[344020290,1733209836472,-151.0,0.00021804,2]
[344020291,1733209836489,-151.0,0.00021804,2]
[344020292,1733209836499,-1281.51414047,0.00021835,2]
[344020293,1733209836510,-151.0,0.00021835,2]
[344020294,1733209836521,-187.8743989,0.00021844,2]
[344020295,1733209836531,-2281.15310199,0.000219,2]
[344020296,1733209836542,-1500.0,0.00021922,2]
[344020297,1733209836552,-507.08906592,0.00021973,2]
[344020298,1733209836562,-500.0,0.00021973,2]
[344020299,1733209836572,-64287.0,0.00022,2]
[344020300,1733209836583,-263.712444,0.00022,7]
[344020301,1733209836593,-263.712444,0.00022,7]
[344020302,1733209836603,-209.261442,0.00022,7]
[344020303,1733209836613,-209.261442,0.00022,7]
[344020304,1733209836623,-20000.0,0.00022,3]
[344020305,1733209836634,-197.451015,0.00022,7]
[344020306,1733209836643,-197.451015,0.00022,7]
[344020307,1733209836653,-151.0,0.00022,7]
[344020308,1733209836663,-775.61802,0.00022,7]
[344020309,1733209836676,-775.61802,0.00022,7]
[344020310,1733209836685,-151.0,0.00022,7]
[344020311,1733209836695,-151.0,0.00022,7]
[344020312,1733209836706,-222.659587,0.00022,7]
[344020313,1733209836717,-222.659587,0.00022,7]
[344020314,1733209836734,-444.967813,0.00022,7]
[344020315,1733209836745,-444.967813,0.00022,7]
[344020316,1733209836756,-641.792493,0.00022,7]
[344020317,1733209836766,-641.792493,0.00022,7]
[344020318,1733209836776,-183.098343,0.00022055,2]
[344020319,1733209836786,-39.922648,0.00022061,7]
[344020320,1733209836796,-151.0,0.00022061,7]
[344020321,1733209836807,-151.0,0.00022061,7]
[344020322,1733209836818,-151.0,0.00022062,7]
[344020323,1733209836828,-151.0,0.00022062,7]
[344020324,1733209836838,-151.0,0.00022063,7]
[344020325,1733209836849,-151.0,0.00022063,7]
[344020326,1733209836859,-151.0,0.00022063,7]
[344020327,1733209836869,-151.0,0.00022064,7]
[344020328,1733209836879,-151.0,0.00022064,7]
[344020329,1733209836889,-151.0,0.00022064,7]
[344020330,1733209836900,-609.02944061,0.00022064,2]
[344020331,1733209836910,-277.72761503,0.00022065,2]
[344020332,1733209836920,-361.97477656,0.00022065,2]
[344020333,1733209836930,-214.226606,0.00022065,7]
[344020334,1733209836939,-166.190436,0.00022065,7]
[344020335,1733209836949,-166.190436,0.00022065,7]
[344020336,1733209836959,-1169.27083333,0.0002207,7]
[344020337,1733209836970,-153.478714,0.00022122,7]
[344020338,1733209836984,-197.702058,0.00022122,7]
[344020339,1733209836994,-197.702058,0.00022122,7]
[344020340,1733209837004,-823.0,0.00022123,2]
[344020341,1733209837015,-1000.0,0.00022521,2]
[344020342,1733209837025,-151.0,0.00022606,7]
[344020343,1733209837036,-166.190436,0.00022621,7]
[344020344,1733209837046,-166.190436,0.00022621,7]
[344020345,1733209837056,-2897.35120429,0.00022795,2]
[344020346,1733209837066,-197.702058,0.00023,7]
[344020347,1733209837077,-197.702058,0.00023,7]
[344020348,1733209837087,-1000.0,0.0002302,2]
[344020349,1733209837097,-151.0,0.00023059,7]
[344020350,1733209837107,-151.0,0.00023059,7]
[344020351,1733209837117,-222.659587,0.00023059,7]
[344020352,1733209837127,-222.659587,0.00023059,7]
[344020353,1733209837137,-2281.15310196,0.0002315,2]
[344020354,1733209837146,-320.14634319,0.0002322,2]
[344020355,1733209837156,-1500.0,0.00023522,2]
[344020356,1733209837165,-159.655214,0.00023562,2]
[344020357,1733209837174,-151.0,0.00023562,7]
[344020358,1733209837184,-151.0,0.00023622,7]
[344020359,1733209837193,-151.0,0.00023622,7]
[344020360,1733209837203,-1152.0,0.00023691,2]